bitfinex/quotes_SOLUSD_20250531
["timestamp","ask_amount","ask_price","bid_price","bid_amount"]
[1748685745276,11.66341613,154.06,154.0,27.89724163]
[1748685745277,27.89724163,154.05,154.0,27.89724163]
[1748685745480,27.89724163,154.05,154.01,18.79181043]
[1748685745784,18.15449306,154.06,154.01,28.0394032]
[1748685745990,46.05173469,154.06,154.01,28.0394032]
[1748685746282,39.56065776,154.06,154.02,6.49266329]
[1748685746446,27.89724163,154.09,154.04,27.89724163]
[1748685747552,27.89724163,154.09,154.05,6.49139889]
[1748685747907,27.89724163,154.06,154.0,117.27444163]
[1748685748181,27.89724163,154.03,153.99,46.54689049]
[1748685748484,27.89724163,154.03,153.99,18.64964886]
[1748685748698,27.89724163,154.04,153.99,53.89724163]
[1748685748901,27.89724163,154.04,154.0,25.42721954]
[1748685749057,26.0,154.1,154.02,27.89724163]
[1748685749058,27.89724163,154.07,154.02,27.89724163]
[1748685749501,27.89724163,154.06,154.02,0.14216157]
[1748685750163,27.89724163,154.06,154.01,53.03964057]
[1748685750464,27.89724163,154.05,154.01,25.14256516]
[1748685751181,27.89724163,154.05,154.0,53.89724163]
[1748685751385,27.89724163,154.04,153.99,27.89724163]
[1748685751695,27.89724163,154.03,153.98,79.04111797]
[1748685752588,27.89724163,154.03,153.98,26.0]
[1748685752589,27.89724163,154.01,153.98,26.0]
[1748685752964,27.89724163,154.0,153.96,6.62]
[1748685753161,27.89724163,154.0,153.96,13.11516826]
[1748685753379,6.49192812,154.04,153.97,46.68905206]
[1748685753564,27.89724163,154.02,153.97,46.68905206]
[1748685753965,26.0,154.09,154.01,27.89724163]
[1748685754165,27.89724163,154.07,154.02,28.0394032]
[1748685754365,27.89724163,154.05,154.01,18.64964886]
[1748685754589,27.89724163,154.05,154.0,72.54689049]
[1748685754590,27.89724163,154.05,154.0,60.39059261]
[1748685754766,27.89724163,154.05,153.99,0.28432314]
[1748685754767,27.89724163,154.03,153.99,53.32500988]
[1748685755369,27.89724163,154.04,153.99,53.32500988]
[1748685755678,6.4916243,154.05,153.98,6.49432545]
[1748685755679,27.89724163,154.02,153.98,6.49432545]
[1748685756083,27.89724163,154.02,153.98,34.39156708]
[1748685756276,27.89724163,154.02,153.98,27.89724163]
[1748685756473,34.39032649,154.01,153.96,34.6594032]
[1748685756693,27.89724163,154.02,153.97,27.89724163]
[1748685756891,27.89724163,154.01,153.96,34.51724163]
[1748685757080,22.72137106,154.04,153.96,6.62]
[1748685757081,27.89724163,154.0,153.96,6.62]
[1748685757283,27.89724163,153.99,153.95,1.5772]
[1748685757893,27.89724163,154.01,153.96,27.89724163]
[1748685758101,27.89724163,154.01,153.95,8.07263331]
[1748685758102,27.89724163,154.02,153.97,46.68905206]
[1748685758301,27.89724163,154.01,153.97,18.79181043]
[1748685758609,27.89724163,154.0,153.96,18.79181043]
[1748685758811,27.89724163,154.01,153.96,46.68905206]
[1748685759715,27.89724163,154.02,153.97,27.89724163]
[1748685760414,27.89724163,154.02,153.98,6.49434991]
[1748685764404,27.89724163,154.05,154.0,27.89724163]
[1748685765412,6.49068927,154.07,154.02,27.89724163]
[1748685765413,27.89724163,154.07,154.02,27.89724163]
[1748685765613,27.89724163,154.08,154.03,27.89724163]
[1748685766024,27.89724163,154.07,154.02,27.89724163]
[1748685766328,27.89724163,154.07,154.02,34.38949126]
[1748685766628,27.89724163,154.05,154.01,6.49292228]
[1748685767697,27.89724163,154.06,154.01,34.39016391]
[1748685769315,27.89724163,154.06,154.02,27.89724163]
[1748685769719,27.89724163,154.07,154.02,27.89724163]
[1748685770334,27.89724163,154.09,154.04,27.89724163]
[1748685770549,27.89724163,154.09,154.03,1.6026]
[1748685770550,27.89724163,154.1,154.05,27.89724163]
[1748685770847,27.89724163,154.1,154.06,6.49097754]
[1748685771424,27.89724163,154.11,154.06,34.38821917]
[1748685771631,27.89724163,154.11,154.07,46.54689049]
[1748685771811,27.89724163,154.12,154.07,46.54689049]
[1748685772824,27.89724163,154.12,154.08,6.49013499]
[1748685773959,27.89724163,154.09,154.03,8.09477021]
[1748685774258,27.89724163,154.06,154.01,27.89724163]
[1748685774610,27.89724163,154.06,154.02,6.49252628]
[1748685774809,34.38855247,154.06,154.01,27.89724163]
[1748685775030,34.38855247,154.06,154.01,34.39016724]
[1748685775238,27.89724163,154.06,154.01,34.39016724]
[1748685775932,27.89724163,154.06,154.02,18.64964886]
[1748685776944,27.89724163,154.06,154.03,6.49224177]
[1748685777128,27.89724163,154.06,154.01,27.89724163]
[1748685777327,27.89724163,154.06,154.01,34.39018924]
[1748685778344,34.38832329,154.06,154.01,34.39018924]
[1748685778567,27.89724163,154.05,154.01,6.49294761]
[1748685778759,6.49308486,154.01,153.96,6.372]
[1748685778939,27.89724163,153.98,153.95,1.6164]
[1748685779136,6.49308486,154.01,153.95,1.6164]
[1748685779137,27.89724163,153.97,153.95,1.6164]
[1748685779359,27.89724163,153.97,153.94,25.1455398]
[1748685779543,6.49308486,154.01,153.94,25.1455398]
[1748685779544,27.89724163,153.98,153.94,25.1455398]
[1748685780138,27.89724163,153.99,153.95,46.68905206]
[1748685780465,27.89724163,153.99,153.94,34.39313257]
[1748685780659,27.89724163,153.97,153.94,6.49589094]
[1748685781050,27.89724163,153.98,153.94,34.39313257]
[1748685781246,27.89724163,154.0,153.95,46.68905206]
[1748685782338,26.0,154.05,153.96,34.39243518]
[1748685782339,27.89724163,154.01,153.96,34.39243518]
[1748685782645,27.89724163,154.0,153.95,27.89724163]
[1748685782849,27.89724163,153.97,153.93,72.54689049]
[1748685783160,27.89724163,153.98,153.93,72.54689049]
[1748685783359,27.89724163,153.98,153.93,46.54689049]
[1748685783539,27.89724163,153.98,153.93,34.39338369]
[1748685783746,27.89724163,153.97,153.93,6.49614206]
[1748685783947,27.89724163,153.97,153.93,32.49614206]
[1748685785643,27.89724163,153.96,153.92,1.6164]
[1748685785845,27.89724163,153.94,153.92,26.0]
[1748685786062,27.89724163,153.99,153.88,1.6663]
[1748685786063,27.89724163,153.93,153.88,1.6663]
[1748685786381,27.89724163,153.93,153.84,6.50026001]
[1748685786382,27.89724163,153.89,153.84,6.50026001]
[1748685786685,26.0,153.93,153.83,1.5297]
[1748685786686,27.89724163,153.86,153.83,8.03024624]
[1748685787186,27.89724163,153.86,153.82,34.22124163]
[1748685787187,27.89724163,153.86,153.82,6.324]
[1748685787365,27.89724163,153.84,153.81,32.50138394]
[1748685787565,27.89724163,153.84,153.81,6.50138394]
[1748685788892,27.89724163,153.84,153.79,29.42694163]
[1748685788893,27.89724163,153.82,153.79,8.03193949]
[1748685789063,27.89724163,153.8,153.78,6.50267707]
[1748685789268,27.89724163,153.8,153.77,6.50311208]
[1748685789784,27.89724163,153.79,153.76,25.15313823]
[1748685789974,27.89724163,153.78,153.76,25.15313823]
[1748685790172,27.89724163,153.79,153.76,25.15313823]
[1748685790392,27.89724163,153.8,153.76,25.15313823]
[1748685790767,6.50115264,153.82,153.75,35.93092057]
[1748685790768,27.89724163,153.79,153.75,35.93092057]
[1748685790974,6.50115264,153.82,153.75,6.50397894]
[1748685790975,27.89724163,153.77,153.75,6.50397894]
[1748685791680,27.89724163,153.83,153.77,0.28432314]
[1748685791867,27.89724163,153.83,153.79,27.89724163]
[1748685792061,44.42652827,153.9,153.8,72.54689049]
[1748685792062,27.89724163,153.85,153.8,72.54689049]
[1748685792565,27.89724163,153.85,153.81,6.50152785]
[1748685792765,27.89724163,153.85,153.82,18.64964886]
[1748685793992,27.89724163,153.84,153.8,32.50183561]
[1748685794183,27.89724163,153.84,153.8,25.15148447]
[1748685795365,27.89724163,153.85,153.81,18.79181043]
[1748685795595,27.89724163,153.85,153.81,18.64964886]
[1748685795912,27.89724163,153.84,153.81,18.64964886]
[1748685796079,27.89724163,153.85,153.81,18.64964886]
[1748685796607,27.89724163,153.82,153.77,46.54689049]
[1748685796767,27.89724163,153.81,153.77,6.50309347]
[1748685796975,27.89724163,153.8,153.76,18.64964886]
[1748685797167,27.89724163,153.8,153.76,25.15321963]
[1748685798091,27.89724163,153.82,153.78,18.64964886]
[1748685798477,137.72385003,153.88,153.8,18.64964886]
[1748685798674,27.89724163,153.88,153.83,46.54689049]
[1748685798868,27.89724163,153.88,153.84,6.50026001]
[1748685799066,155.83683165,153.92,153.84,6.50026001]
[1748685799293,27.89724163,153.88,153.84,6.50026001]
[1748685800198,6.49742362,153.91,153.83,25.15031333]
[1748685800199,27.89724163,153.87,153.83,25.15031333]
[1748685800585,27.89724163,153.86,153.82,6.50105606]
[1748685800787,27.89724163,153.87,153.83,18.64964886]
[1748685801214,27.89724163,153.86,153.83,18.64964886]
[1748685801415,27.89724163,153.87,153.83,25.15022645]
[1748685801716,27.89724163,153.88,153.83,53.04746808]
[1748685802503,27.89724163,153.88,153.8,26.0]
[1748685802504,27.89724163,153.85,153.8,26.0]
[1748685802703,27.89724163,153.86,153.81,53.04819595]
[1748685802929,6.49740031,153.91,153.83,6.64284414]
[1748685803213,27.89724163,153.89,153.84,46.54689049]
[1748685803914,27.89724163,153.86,153.83,6.50068257]
[1748685804143,27.89724163,153.84,153.81,18.64964886]
[1748685804431,22.74065935,153.91,153.81,46.54689049]
[1748685804597,27.89724163,153.86,153.81,46.54689049]
[1748685805025,27.89724163,153.86,153.81,53.04834824]
[1748685805232,27.89724163,153.84,153.81,18.64964886]
[1748685805433,27.89724163,153.85,153.81,25.15113768]
[1748685805930,27.89724163,153.86,153.81,53.04837931]
[1748685806225,27.89724163,153.85,153.81,25.15113768]
[1748685806428,27.89724163,153.86,153.82,0.14216157]
[1748685806600,27.89724163,153.88,153.83,27.89724163]
[1748685807032,27.89724163,153.88,153.84,6.50026001]
[1748685807518,27.89724163,153.88,153.83,27.89724163]
[1748685807519,27.89724163,153.86,153.82,25.29256286]
[1748685807696,27.89724163,153.87,153.82,53.18980449]
[1748685808954,27.89724163,153.9,153.86,6.49941505]
[1748685809154,27.89724163,153.91,153.86,34.39665668]
[1748685809451,39.64882325,153.92,153.87,46.54689049]
[1748685809916,39.64882325,153.92,153.86,6.49941505]
[1748685809917,27.89724163,153.91,153.86,27.89724163]
[1748685810110,27.89724163,153.88,153.84,18.64964886]
[1748685810531,27.89724163,153.9,153.86,18.64964886]
[1748685810724,27.89724163,153.91,153.86,46.54689049]
[1748685811038,39.64882325,153.92,153.88,6.49857031]
[1748685811725,46.14570563,153.92,153.87,27.89724163]
[1748685811925,27.89724163,153.89,153.85,6.49978301]
[1748685812914,27.89724163,153.9,153.85,27.89724163]
[1748685813126,27.89724163,153.87,153.82,34.39821053]
[1748685814024,27.89724163,153.89,153.85,18.64964886]
[1748685814419,11.75158162,153.92,153.89,18.64964886]
[1748685814629,27.89724163,153.99,153.89,18.64964886]
[1748685814630,27.89724163,153.96,153.91,27.89724163]
[1748685815330,27.89724163,153.98,153.93,27.89724163]
[1748685815538,27.89724163,153.99,153.94,27.89724163]
[1748685815840,27.89724163,153.99,153.93,0.14216157]
[1748685815841,27.89724163,153.98,153.93,28.0394032]
[1748685816055,27.89724163,154.01,153.96,27.89724163]
[1748685817048,6.4918203,154.04,153.97,46.68905206]
[1748685817340,6.4918203,154.04,153.99,27.89724163]
[1748685817341,34.38906193,154.04,153.99,27.89724163]
[1748685818145,27.89724163,154.04,153.99,27.89724163]
[1748685818529,34.38918307,154.04,153.99,27.89724163]
[1748685818842,34.38918307,154.04,153.95,16.2389539]
[1748685818843,27.89724163,154.0,153.95,18.64964886]
[1748685819046,27.89724163,154.0,153.96,0.14216157]
[1748685819233,27.89724163,154.01,153.96,34.53453886]
[1748685819821,27.89724163,154.01,153.96,28.0394032]
[1748685820419,27.89724163,154.01,153.96,0.14216157]
[1748685820640,27.89724163,154.01,153.96,6.63722449]
[1748685820943,27.89724163,154.01,153.96,34.53446612]
[1748685821125,34.39033219,154.01,153.96,34.53446612]
[1748685821623,34.39033219,154.01,153.95,18.64964886]
[1748685821624,27.89724163,153.99,153.95,18.64964886]
[1748685822028,27.89724163,153.99,153.94,53.89724163]
[1748685822243,27.89724163,153.99,153.94,60.39305193]
[1748685823033,27.89724163,154.0,153.95,27.89724163]
[1748685823335,34.38993769,154.02,153.97,27.89724163]
[1748685824750,10.13651772,154.24,153.97,27.89724163]
[1748685824751,27.89724163,154.05,154.0,28.0394032]
[1748685825050,27.89724163,154.06,154.01,46.54689049]
[1748685825253,27.89724163,154.06,154.02,6.49266329]
[1748685825425,34.3878311,154.07,154.02,34.38990492]
[1748685825619,27.89724163,154.07,154.03,18.79181043]
[1748685825825,27.89724163,154.08,154.03,46.68905206]
[1748685826324,27.89724163,154.07,154.03,18.79181043]
[1748685826529,27.89724163,154.06,154.03,18.79181043]
[1748685826941,27.89724163,154.07,154.03,18.79181043]
[1748685827132,27.89724163,154.07,154.02,27.89724163]
[1748685827336,27.89724163,154.07,153.99,27.89724163]
[1748685827337,27.89724163,154.03,153.99,27.89724163]
[1748685827661,27.89724163,154.03,153.96,6.5717]
[1748685827662,27.89724163,154.0,153.96,8.1189]
[1748685827954,27.89724163,154.01,153.96,36.01614163]
[1748685828739,27.89724163,154.01,153.96,42.51128616]
[1748685828932,27.89724163,154.01,153.96,36.01614163]
[1748685829139,27.89724163,154.0,153.96,1.5472]
[1748685829544,27.89724163,154.0,153.96,8.04230916]
[1748685829962,27.89724163,154.01,153.96,8.04230916]
[1748685830763,34.39040303,154.01,153.95,27.89724163]
[1748685830954,27.89724163,153.97,153.94,32.49594818]
[1748685831163,27.89724163,153.99,153.95,18.64964886]
[1748685831550,27.89724163,153.99,153.94,60.39318981]
[1748685831551,34.39118313,153.99,153.94,60.39318981]
[1748685831974,27.89724163,153.99,153.94,60.39318981]
[1748685833343,27.89724163,153.97,153.93,6.5717]
[1748685833573,27.89724163,153.96,153.93,18.64964886]
[1748685833776,27.89724163,153.97,153.93,18.64964886]
[1748685834247,27.89724163,153.95,153.9,27.89724163]
[1748685834442,22.72877117,153.99,153.9,26.0]
[1748685834443,27.89724163,153.94,153.9,26.0]
[1748685835057,27.89724163,153.94,153.9,32.49766599]
[1748685835378,34.39329622,153.94,153.9,26.0]
[1748685835586,27.89724163,153.93,153.89,24.82634886]
[1748685835873,27.89724163,153.94,153.89,59.22170852]
[1748685836175,34.3933154,153.94,153.89,52.72359049]
[1748685836750,27.89724163,153.94,153.89,59.22168899]
[1748685837273,6.49441449,153.98,153.91,34.39454524]
[1748685837453,27.89724163,153.96,153.91,34.39454524]
[1748685837648,27.89724163,153.95,153.91,6.49730361]
[1748685838766,6.49441449,153.98,153.89,34.07394163]
[1748685838767,27.89724163,153.94,153.89,34.07394163]
[1748685838974,27.89724163,153.93,153.89,6.1767]
[1748685839477,27.89724163,153.93,153.89,12.67470136]
[1748685840965,34.39374605,153.93,153.87,29.50064163]
[1748685841168,34.39374605,153.93,153.85,32.4996842]
[1748685841169,27.89724163,153.9,153.85,32.4996842]
[1748685841480,27.89724163,153.9,153.85,25.14933306]
[1748685841668,27.89724163,153.9,153.85,51.14933306]
[1748685842179,42.23778744,153.97,153.88,27.89724163]
[1748685842480,27.89724163,153.92,153.86,46.68905206]
[1748685842659,27.89724163,153.9,153.85,60.39692583]
[1748685843474,27.89724163,153.89,153.84,40.90328333]
[1748685845171,27.89724163,153.89,153.85,27.89724163]
[1748685845384,27.89724163,153.9,153.85,27.89724163]
[1748685845759,6.4947717,153.97,153.89,27.89724163]
[1748685845981,27.89724163,153.93,153.88,28.0394032]
[1748685846867,32.4947717,153.97,153.84,40.90322588]
[1748685846868,27.89724163,153.89,153.84,40.90322588]
[1748685847081,27.89724163,153.89,153.84,66.90322588]
[1748685847657,27.89724163,153.89,153.84,39.00598425]
[1748685847969,42.23798389,153.96,153.85,18.64964886]
[1748685848169,42.23798389,153.96,153.87,27.89724163]
[1748685848383,27.89724163,153.92,153.87,27.89724163]
[1748685848582,27.89724163,153.93,153.87,27.89724163]
[1748685848784,27.89724163,153.93,153.88,27.89724163]
[1748685849175,27.89724163,153.95,153.9,27.89724163]
[1748685849383,27.89724163,153.96,153.91,27.89724163]
[1748685849576,27.89724163,153.95,153.9,27.89724163]
[1748685849780,27.89724163,153.96,153.91,27.89724163]
[1748685850081,27.89724163,153.96,153.92,6.49688149]
[1748685850605,27.89724163,153.97,153.92,34.39412312]
[1748685851474,6.49409971,153.99,153.93,27.89724163]
[1748685851796,27.89724163,153.98,153.93,27.89724163]
[1748685852014,27.89724163,153.99,153.95,6.49561545]
[1748685852167,27.89724163,153.99,153.94,46.68905206]
[1748685852168,27.89724163,153.98,153.94,25.28767766]
[1748685852368,27.89724163,153.98,153.94,6.49586723]
[1748685853062,27.89724163,153.99,153.95,18.79181043]
[1748685853892,32.4918203,154.04,153.96,27.89724163]
[1748685853893,27.89724163,154.01,153.96,27.89724163]
[1748685854270,137.72385003,154.07,153.96,27.89724163]
[1748685854271,27.89724163,154.03,153.98,46.68905206]
[1748685854463,27.89724163,154.04,153.99,27.89724163]
[1748685854868,6.49097754,154.06,153.99,27.89724163]
[1748685854869,27.89724163,154.03,153.99,27.89724163]
[1748685855398,27.89724163,154.06,154.02,18.79181043]
[1748685855696,6.2271,154.11,154.01,27.89724163]
[1748685855697,27.89724163,154.08,154.03,27.89724163]
[1748685856074,27.89724163,154.06,154.02,27.89724163]
[1748685856274,27.89724163,154.06,154.02,18.79181043]
[1748685856809,27.89724163,154.05,154.0,34.39065594]
[1748685856969,27.89724163,154.04,153.99,85.49618168]
[1748685857292,27.89724163,154.03,153.99,32.49391701]
[1748685857499,27.89724163,154.0,153.95,40.88802209]
[1748685857793,0.28432314,154.07,153.93,16.2403067]
[1748685857794,27.89724163,153.97,153.93,8.02435808]
[1748685857991,27.89724163,153.97,153.93,34.02435808]
[1748685858881,6.4918203,154.04,153.95,27.89724163]
[1748685859079,27.89724163,154.0,153.95,27.89724163]
[1748685859298,27.89724163,153.99,153.94,46.68905206]
[1748685859602,22.72137106,154.04,153.94,46.68905206]
[1748685859603,27.89724163,154.0,153.96,18.79181043]
[1748685859796,6.4918203,154.04,153.96,46.68905206]
[1748685859797,27.89724163,154.01,153.96,46.68905206]
[1748685860185,27.89724163,154.01,153.97,6.4947717]
[1748685860377,27.89724163,154.02,153.97,34.39201333]
[1748685860698,27.89724163,154.02,153.98,18.79181043]
[1748685862077,27.89724163,154.02,153.99,6.49392817]
[1748685862267,27.89724163,154.03,153.99,6.49392817]
[1748685862899,27.89724163,154.04,154.0,18.79181043]
[1748685863072,27.89724163,154.05,154.0,46.68905206]
[1748685864088,27.89724163,154.04,154.0,18.79181043]
[1748685864567,27.89724163,154.04,154.0,53.18240163]
[1748685864999,27.89724163,154.04,153.92,10.0]
[1748685865000,27.89724163,154.01,153.94,6.3322]
[1748685865296,27.89724163,153.98,153.95,44.64964886]
[1748685865482,27.89724163,153.98,153.94,34.22944163]
[1748685865796,26.0,154.04,153.9,34.39496742]
[1748685865797,27.89724163,153.95,153.9,34.39496742]
[1748685865979,27.89724163,153.95,153.92,6.49688149]
[1748685866185,27.89724163,153.96,153.92,6.49688149]
[1748685866381,27.89724163,153.96,153.91,60.39445098]
[1748685866585,6.49459078,153.98,153.89,14.45067463]
[1748685866586,27.89724163,153.94,153.89,14.45067463]
[1748685866775,27.89724163,153.94,153.9,18.64964886]
[1748685867301,27.89724163,153.94,153.89,68.34791626]
[1748685867680,27.89724163,153.94,153.9,18.79181043]
[1748685867881,6.49459078,153.98,153.9,46.68905206]
[1748685868085,27.89724163,153.95,153.91,6.49730361]
[1748685868808,27.89724163,153.94,153.91,6.49730361]
[1748685869016,27.89724163,153.95,153.91,6.49730361]
[1748685869305,27.89724163,153.96,153.91,34.39454524]
[1748685870191,34.39262934,153.96,153.91,34.39454524]
[1748685870393,34.39262934,153.96,153.86,1.5794]
[1748685870394,27.89724163,153.92,153.86,1.5794]
[1748685870597,27.89724163,153.89,153.86,1.5794]
[1748685871404,27.89724163,153.89,153.85,6.2884]
[1748685872188,27.89724163,153.9,153.87,6.49899265]
[1748685872419,27.89724163,153.91,153.87,34.39623428]
[1748685872602,27.89724163,153.97,153.91,18.64964886]
[1748685872782,27.89724163,153.97,153.92,28.0394032]
[1748685873501,27.89724163,153.97,153.93,18.64964886]
[1748685873690,27.89724163,153.99,153.94,27.89724163]
[1748685874298,27.89724163,153.99,153.95,6.49561545]
[1748685874503,26.0,154.02,153.94,6.49588035]
[1748685874504,27.89724163,153.98,153.94,6.49588035]
[1748685875088,27.89724163,153.97,153.94,6.49588035]
[1748685875484,27.89724163,153.98,153.94,6.49588035]
[1748685876900,6.49355317,154.0,153.94,6.49588035]
[1748685877112,27.89724163,153.98,153.94,6.49588035]
[1748685877728,26.0,154.02,153.94,34.39312198]
[1748685877729,27.89724163,153.99,153.94,34.39312198]
[1748685877916,27.89724163,154.0,153.95,27.89724163]
[1748685878990,6.49224177,154.03,153.96,6.49519355]
[1748685879213,27.89724163,154.01,153.96,34.39243518]
[1748685880439,53.89724163,153.97,153.88,6.0504]
[1748685880741,53.89724163,153.97,153.85,6.4998375]
[1748685880742,27.89724163,153.89,153.85,6.4998375]
[1748685880925,27.89724163,153.89,153.84,33.94764163]
[1748685881102,26.0,153.91,153.83,29.48854163]
[1748685881103,27.89724163,153.88,153.83,29.48854163]
[1748685881503,27.89724163,153.88,153.83,1.5913]
[1748685881701,27.89724163,153.84,153.79,27.89724163]
[1748685881913,27.89724163,153.81,153.77,1.6427]
[1748685882115,27.89724163,153.81,153.72,1.6457062]
[1748685882116,27.89724163,153.78,153.72,1.6457062]
[1748685882427,26.0,153.82,153.72,1.6457062]
[1748685882428,26.0,153.82,153.72,29.54294783]
[1748685882597,16.25250787,153.83,153.74,27.89724163]
[1748685882598,6.50152785,153.81,153.74,27.89724163]
[1748685882798,26.0,153.83,153.74,27.89724163]
[1748685882799,27.89724163,153.79,153.74,27.89724163]
[1748685883101,27.89724163,153.79,153.72,34.15091824]
[1748685883102,27.89724163,153.75,153.72,1.6457062]
[1748685883301,27.89724163,153.75,153.72,8.15095484]
[1748685883521,27.89724163,153.76,153.72,8.15095484]
[1748685884045,22.7539398,153.82,153.72,8.15095484]
[1748685884046,43.19801777,153.77,153.73,18.64964886]
[1748685884251,43.19801777,153.76,153.74,6.50448809]
[1748685884451,43.19801777,153.78,153.74,49.70250586]
[1748685884944,43.19801777,153.78,153.74,6.50448809]
[1748685885121,43.19801777,153.78,153.75,18.64964886]
[1748685885635,43.19801777,153.76,153.74,6.50448809]
[1748685885838,32.50121305,153.82,153.74,6.50448809]
[1748685885839,43.19801777,153.77,153.74,6.50448809]
[1748685886331,43.19801777,153.77,153.73,25.15456006]
[1748685888240,43.19801777,153.77,153.73,41.41683807]
[1748685888538,163.97200322,153.87,153.75,18.64964886]
[1748685888539,43.19801777,153.79,153.75,18.64964886]
[1748685888862,43.19801777,153.8,153.75,61.84766663]
[1748685889024,43.19801777,153.81,153.77,18.64964886]
[1748685890437,43.19801777,153.81,153.78,6.5027962]
[1748685890747,43.19801777,153.81,153.74,26.0]
[1748685890748,43.19801777,153.79,153.74,26.0]
[1748685891044,26.0,153.86,153.75,18.64964886]
[1748685891045,43.19801777,153.78,153.75,18.64964886]
[1748685891563,43.19801777,153.78,153.75,25.1537139]
[1748685892652,43.19801777,153.76,153.7,1.6427]
[1748685892842,43.19801777,153.73,153.7,1.6427]
[1748685893946,43.19801777,153.73,153.7,8.14880005]
[1748685895063,43.19801777,153.73,153.68,43.19801777]
[1748685895266,43.19801777,153.72,153.68,25.15647958]
[1748685895879,137.72385003,153.81,153.73,6.5049112]
[1748685896081,6.50110518,153.82,153.74,61.84766663]
[1748685896382,43.19801777,153.8,153.75,43.48234091]
[1748685896674,43.19801777,153.79,153.76,18.64964886]
[1748685897180,43.19801777,153.8,153.76,18.64964886]
[1748685897557,43.19801777,153.79,153.75,6.50372279]
[1748685897885,43.19801777,153.8,153.75,49.70174056]
[1748685898293,43.19801777,153.79,153.75,6.50372279]
[1748685898871,43.19801777,153.8,153.75,49.70174056]
[1748685899188,43.19801777,153.79,153.75,6.50372279]
[1748685899371,43.19801777,153.78,153.75,6.50372279]
[1748685900168,43.19801777,153.78,153.74,26.7186081]
[1748685900558,43.19801777,153.75,153.71,6.50575759]
[1748685900759,43.19801777,153.74,153.71,6.50575759]
[1748685900978,43.19801777,153.74,153.71,18.64964886]
[1748685901359,43.19801777,153.75,153.71,18.64964886]
[1748685901687,43.19801777,153.75,153.72,6.50533437]
[1748685902906,43.19801777,153.75,153.68,44.76261777]
[1748685902907,43.19801777,153.73,153.68,44.76261777]
[1748685903060,43.19801777,153.72,153.69,18.64964886]
[1748685903461,43.19801777,153.76,153.72,6.50533437]
[1748685903661,43.19801777,153.78,153.73,61.84766663]
[1748685903859,43.19801777,153.79,153.75,18.64964886]
[1748685904076,43.19801777,153.78,153.73,69.48234091]
[1748685904298,43.19801777,153.78,153.74,18.64964886]
[1748685904496,43.19801777,153.78,153.73,69.48234091]
[1748685904497,43.19801777,153.77,153.73,26.0]
[1748685904715,22.75386814,153.82,153.72,25.15498323]
[1748685904716,43.19801777,153.76,153.72,25.15498323]
[1748685905896,27.93116428,153.73,153.69,18.64964886]
[1748685906067,6.50370009,153.76,153.67,52.61101314]
[1748685906068,27.93116428,153.71,153.67,52.61101314]
[1748685906493,27.93116428,153.71,153.68,8.07131619]
[1748685907017,27.93116428,153.72,153.68,8.07131619]
[1748685907214,6.50339139,153.77,153.71,18.64964886]
[1748685907431,27.93116428,153.73,153.69,18.933972]
[1748685907639,34.43612742,153.73,153.68,8.07131619]
[1748685907805,27.93116428,153.71,153.68,8.07131619]
[1748685908137,27.93116428,153.72,153.68,8.07131619]
[1748685908340,27.93116428,153.74,153.7,0.28432314]
[1748685908495,27.93116428,153.75,153.71,18.64964886]
[1748685908694,27.93116428,153.75,153.72,0.28432314]
[1748685908922,27.93116428,153.78,153.73,46.58081314]
[1748685909137,32.50203188,153.8,153.7,26.0]
[1748685909138,27.93116428,153.76,153.71,46.86513628]
[1748685909303,27.93116428,153.77,153.73,18.64964886]
[1748685909622,27.93116428,153.77,153.73,25.15422737]
[1748685909833,27.93116428,153.78,153.73,25.15422737]
[1748685910408,27.93116428,153.79,153.75,18.64964886]
[1748685910708,32.50068257,153.83,153.75,18.64964886]
[1748685910906,27.93116428,153.79,153.74,27.93116428]
[1748685911113,27.93116428,153.78,153.74,18.64964886]
[1748685911520,27.93116428,153.79,153.74,46.58081314]
[1748685911694,48.75238899,153.83,153.74,46.58081314]
[1748685911695,27.93116428,153.8,153.75,6.50406504]
[1748685911895,27.93116428,153.8,153.75,34.43522932]
[1748685912311,27.93116428,153.8,153.75,6.50406504]
[1748685912519,6.50080874,153.83,153.76,18.64964886]
[1748685912700,27.93116428,153.82,153.78,0.28432314]
[1748685913122,22.80801659,153.88,153.8,0.28432314]
[1748685913301,22.80801659,153.88,153.81,27.93116428]
[1748685913302,27.93116428,153.86,153.81,27.93116428]
[1748685913619,27.93116428,153.86,153.81,0.14216157]
[1748685913620,27.93116428,153.85,153.81,0.14216157]
[1748685913812,27.93116428,153.85,153.81,6.64363648]
[1748685914728,27.93116428,153.86,153.81,34.57480076]
[1748685915406,27.93116428,153.87,153.83,0.14216157]
[1748685915608,16.30944628,153.88,153.84,27.93116428]
[1748685915929,27.93116428,153.92,153.87,27.93116428]
[1748685916127,27.93116428,153.94,153.89,27.93116428]
[1748685916305,27.93116428,153.98,153.93,27.93116428]
[1748685916653,27.93116428,153.99,153.94,27.93116428]
[1748685916930,27.93116428,153.99,153.9,46.72297471]
[1748685916931,27.93116428,153.95,153.9,46.72297471]
[1748685917138,27.93116428,153.94,153.89,27.93116428]
[1748685917298,27.93116428,153.95,153.9,27.93116428]